fUSD/lending_fUSD_20241223
["ID","MTS","AMOUNT","RATE_DAILY","PERIOD"]
[346477187,1734993037727,-193.98700376,0.00013698,2]
[346477188,1734993037736,-500.0,0.00013698,2]
[346477189,1734993037745,-711.93,0.00013698,2]
[346477190,1734993037755,-500.0,0.00013698,2]
[346477191,1734993037764,-500.0,0.00013698,2]
[346477192,1734993037773,-151.0,0.00013698,2]
[346477193,1734993037782,-500.0,0.00013698,2]
[346477194,1734993037791,-694.09,0.00013698,2]
[346477195,1734993037801,-500.0,0.00013698,2]
[346477196,1734993037810,-1678.85,0.00013698,2]
[346477197,1734993037819,-500.0,0.00013698,2]
[346477198,1734993037828,-500.0,0.00013698,2]
[346477199,1734993037837,-1293.79,0.00013698,2]
[346477200,1734993037846,-533.7,0.00013698,2]
[346477201,1734993037856,-539.67,0.00013698,2]
[346477202,1734993037865,-798.98,0.00013698,2]
[346477203,1734993037875,-1079.76,0.00013698,2]
[346477204,1734993037884,-500.0,0.00013698,2]
[346477205,1734993037895,-222.64191844,0.00013698,2]
[346477206,1734993037904,-500.0,0.00013698,2]
[346477207,1734993037914,-151.0,0.00013698,2]
[346477208,1734993037923,-500.0,0.00013698,2]
[346477209,1734993037932,-848.65,0.00013698,2]
[346477210,1734993037942,-500.0,0.00013698,2]
[346477212,1734993037951,-308.27562798,0.00013698,2]
[346477214,1734993037960,-500.0,0.00013698,2]
[346477216,1734993037969,-500.0,0.00013698,2]
[346477218,1734993037981,-1407.28,0.00013698,2]
[346477220,1734993037991,-500.0,0.00013698,2]
[346477222,1734993038000,-151.0,0.00013698,2]
[346477223,1734993038009,-500.0,0.00013698,2]
[346477225,1734993038019,-789.92,0.00013698,2]
[346477227,1734993038028,-500.0,0.00013698,2]
[346477229,1734993038037,-500.0,0.00013698,2]
[346477231,1734993038046,-500.0,0.00013698,2]
[346477233,1734993038057,-500.0,0.00013698,2]
[346477235,1734993038066,-500.0,0.00013698,2]
[346477237,1734993038076,-524.07,0.00013698,2]
[346477239,1734993038086,-952.97,0.00013698,2]
[346477241,1734993038096,-1700.87,0.00013698,2]
[346477242,1734993038105,-500.0,0.00013698,2]
[346477243,1734993038115,-651.05,0.00013698,2]
[346477244,1734993038125,-1118.95,0.00013698,2]
[346477245,1734993038135,-151.0,0.00013698,2]
[346477246,1734993038145,-500.0,0.00013698,2]
[346477247,1734993038155,-500.0,0.00013698,2]
[346477248,1734993038164,-770.04,0.00013698,2]
[346477249,1734993038173,-697.59,0.00013698,2]
[346477250,1734993038185,-1733.85,0.00013698,2]
[346477251,1734993038194,-500.0,0.00013698,2]
[346477252,1734993038203,-249.208339,0.00013698,2]
[346477253,1734993038213,-500.0,0.00013698,2]
[346477254,1734993038222,-423.25236724,0.00013698,2]
[346477255,1734993038231,-500.0,0.00013698,2]
[346477256,1734993038241,-173.81350935,0.00013698,2]
[346477257,1734993038250,-500.0,0.00013698,2]
[346477258,1734993038259,-1169.45,0.00013698,2]
[346477259,1734993038269,-500.0,0.00013698,2]
[346477261,1734993038278,-1052.71,0.00013698,2]
[346477262,1734993038288,-995.6,0.00013698,2]
[346477263,1734993038297,-699.3,0.00013698,2]
[346477264,1734993038306,-500.0,0.00013698,2]
[346477265,1734993038316,-500.0,0.00013698,2]
[346477266,1734993038325,-891.47,0.00013698,2]
[346477267,1734993038335,-500.0,0.00013698,2]
[346477268,1734993038344,-727.34,0.00013698,2]
[346477269,1734993038354,-1205.12,0.00013698,2]
[346477270,1734993038364,-500.0,0.00013698,2]
[346477271,1734993038373,-500.0,0.00013698,2]
[346477272,1734993038382,-802.41,0.00013698,2]
[346477273,1734993038391,-500.0,0.00013698,2]
[346477274,1734993038403,-544.55,0.00013698,2]
[346477275,1734993038413,-673.92,0.00013698,2]
[346477276,1734993038422,-1624.85,0.00013698,2]
[346477277,1734993038431,-500.0,0.00013698,2]
[346477278,1734993038440,-501.60779075,0.00013698,2]
[346477279,1734993038449,-500.0,0.00013698,2]
[346477280,1734993038458,-500.0,0.00013698,2]
[346477281,1734993038467,-1279.54,0.00013698,2]
[346477282,1734993038477,-895.62,0.00013698,2]
[346477283,1734993038486,-500.0,0.00013698,2]
[346477284,1734993038495,-500.0,0.00013698,2]
[346477285,1734993038504,-151.0,0.00013698,2]
[346477286,1734993038514,-500.0,0.00013698,2]
[346477287,1734993038523,-500.0,0.00013698,2]
[346477288,1734993038532,-151.0,0.00013698,2]
[346477289,1734993038541,-710.57,0.00013698,2]
[346477290,1734993038552,-3308.12,0.00013698,2]
[346477291,1734993038561,-500.0,0.00013698,2]
[346477292,1734993038571,-151.0,0.00013698,2]
[346477293,1734993038580,-500.0,0.00013698,2]
[346477294,1734993038590,-500.0,0.00013698,2]
[346477295,1734993038599,-919.52,0.00013698,2]
[346477296,1734993038608,-500.0,0.00013698,2]
[346477297,1734993038617,-500.0,0.00013698,2]
[346477298,1734993038626,-151.0,0.00013698,2]
[346477299,1734993038636,-522.53,0.00013698,2]
[346477300,1734993038648,-1338.35,0.00013698,2]
[346477301,1734993038657,-414.38392947,0.00013698,2]
[346477302,1734993038668,-2103.64,0.00013698,2]
[346477303,1734993038677,-957.18,0.00013698,2]
[346477304,1734993038686,-500.0,0.00013698,2]
[346477305,1734993038695,-848.68,0.00013698,2]
[346477306,1734993038707,-1167.2,0.00013698,2]
[346477307,1734993038719,-151.0,0.00013698,2]
[346477309,1734993038731,-897.97,0.00013698,2]
[346477310,1734993038743,-843.11,0.00013698,2]
[346477312,1734993038752,-500.0,0.00013698,2]
[346477313,1734993038761,-1124.22,0.00013698,2]
[346477314,1734993038771,-2357.31,0.00013698,2]
[346477315,1734993038780,-1035.77,0.00013698,2]
[346477316,1734993038789,-160.925954,0.00013698,2]
[346477317,1734993038798,-541.17,0.00013698,2]
[346477318,1734993038807,-540.88,0.00013698,2]
[346477319,1734993038816,-553.68,0.00013698,2]
[346477320,1734993038826,-500.0,0.00013698,2]
[346477321,1734993038835,-999.33,0.00013698,2]
[346477322,1734993038844,-500.0,0.00013698,2]
[346477323,1734993038853,-500.0,0.00013698,2]
[346477324,1734993038863,-500.0,0.00013698,2]
[346477325,1734993038873,-500.0,0.00013698,2]
[346477326,1734993038882,-500.0,0.00013698,2]
[346477327,1734993038892,-500.0,0.00013698,2]
[346477328,1734993038903,-500.0,0.00013698,2]
[346477329,1734993038912,-500.0,0.00013698,2]
[346477330,1734993038921,-500.0,0.00013698,2]
[346477331,1734993038931,-1580.65,0.00013698,2]
[346477332,1734993038940,-1783.68,0.00013698,2]
[346477333,1734993038950,-500.0,0.00013698,2]
[346477334,1734993038959,-817.39,0.00013698,2]
[346477335,1734993038968,-987.44,0.00013698,2]
[346477336,1734993038983,-151.0,0.00013698,2]
[346477337,1734993038992,-3253.87,0.00013698,2]
[346477338,1734993039002,-503.33231785,0.00013698,2]
[346477339,1734993039011,-696.22,0.00013698,2]
[346477340,1734993039021,-500.0,0.00013698,2]
[346477341,1734993039030,-151.0,0.00013698,2]
[346477342,1734993039039,-151.0,0.00013698,2]
[346477343,1734993039049,-2898.06,0.00013698,2]
[346477344,1734993039059,-500.0,0.00013698,2]
[346477345,1734993039070,-500.0,0.00013698,2]
[346477346,1734993039080,-705.74,0.00013698,2]
[346477347,1734993039089,-546.54,0.00013698,2]
[346477348,1734993039100,-845.25,0.00013698,2]
[346477349,1734993039109,-965.2,0.00013698,2]
[346477350,1734993039119,-3605.55,0.00013698,2]
[346477351,1734993039129,-976.0,0.00013698,2]
[346477352,1734993039138,-500.0,0.00013698,2]
[346477353,1734993039152,-1877.29589851,0.00013698,2]
[346477354,1734993039675,-1855.01891445,0.00013698,2]
[346477478,1734993041306,-1000.0,0.00013598,2]
[346477479,1734993041316,-2375.78518704,0.00013698,2]
[346477480,1734993041325,-642.25,0.00013698,2]
[346477481,1734993041334,-500.0,0.00013698,2]
[346477482,1734993041343,-500.0,0.00013698,2]
[346477483,1734993041353,-903.02,0.00013698,2]
[346477484,1734993041363,-151.0,0.00013698,2]
[346477485,1734993041372,-629.1,0.00013698,2]
[346477486,1734993041381,-218.4448129,0.00013698,2]
[346477487,1734993041393,-2657.21155975,0.00013698,2]
[346477488,1734993041406,-7234.01362735,0.00013698,2]
[346477489,1734993041416,-500.0,0.00013698,2]
[346477490,1734993041426,-500.0,0.00013698,2]
[346477491,1734993041435,-3233.69,0.00013698,2]
[346477492,1734993041445,-1476.84,0.00013698,2]
[346477493,1734993041454,-500.0,0.00013698,2]
[346477494,1734993041463,-500.0,0.00013698,2]
[346477495,1734993041472,-151.0,0.00013698,2]
[346477496,1734993041482,-500.0,0.00013698,2]
[346477497,1734993041492,-500.0,0.00013698,2]
[346477498,1734993041502,-500.0,0.00013698,2]
[346477499,1734993041511,-1875.29,0.00013698,2]
[346477500,1734993041521,-535.87,0.00013698,2]
[346477501,1734993041530,-622.73,0.00013698,2]
[346477502,1734993041539,-1101.9,0.00013698,2]
[346477503,1734993041549,-647.03,0.00013698,2]
[346477504,1734993041558,-500.0,0.00013698,2]
[346477505,1734993041567,-4699.4,0.00013698,2]
[346477506,1734993041576,-500.0,0.00013698,2]
[346477507,1734993041586,-1882.22,0.00013698,2]
[346477508,1734993041595,-955.86,0.00013698,2]
[346477509,1734993041605,-2946.37,0.00013698,2]
[346477510,1734993041615,-1211.49,0.00013698,2]
[346477511,1734993041625,-151.0,0.00013698,2]
[346477512,1734993041634,-500.0,0.00013698,2]
[346477513,1734993041644,-500.0,0.00013698,2]
[346477514,1734993041660,-500.0,0.00013698,2]
[346477515,1734993041669,-1244.74,0.00013698,2]
[346477516,1734993041679,-500.0,0.00013698,2]
[346477517,1734993041689,-500.0,0.00013698,2]
[346477518,1734993041699,-650.82,0.00013698,2]
[346477519,1734993041708,-2500.79,0.00013698,2]
[346477520,1734993041718,-1138.69,0.00013698,2]
[346477521,1734993041727,-1349.38,0.00013698,2]
[346477522,1734993041737,-636.41,0.00013698,2]
[346477523,1734993041746,-500.0,0.00013698,2]
[346477524,1734993041755,-744.75,0.00013698,2]
[346477525,1734993041765,-3133.33706162,0.00013698,2]
[346477526,1734993041844,-2268.91207617,0.00013698,2]
[346477527,1734993041856,-532.80086221,0.00013698,2]
[346477528,1734993041865,-11.52641026,0.00013698,2]
[346477529,1734993041883,-488.47358974,0.00013698,2]
[346477530,1734993041893,-191.04640626,0.00013698,2]
[346477531,1734993041906,-308.95359374,0.00013698,2]
[346477532,1734993041915,-705.10298882,0.00013698,2]
[346477533,1734993042013,-140.67701118,0.00013698,2]
[346477534,1734993042023,-223.55809617,0.00013698,2]
[346477535,1734993042034,-355.17091682,0.00013698,2]
[346477536,1734993042046,-331.2499994,0.00013698,2]
[346477537,1734993042060,-656.27098761,0.00013698,2]
[346477538,1734993042070,-103.22898939,0.00013698,2]
[346477539,1734993042081,-1999.89199707,0.00013698,2]
[346477540,1734993042092,-4085.36901354,0.00013698,2]
[346477541,1734993042102,-3255.86,0.00013698,2]
[346477542,1734993042111,-500.0,0.00013698,2]
[346477543,1734993042121,-2220.65729146,0.00013698,2]
[346477544,1734993042132,-1084.23270854,0.00013698,2]
[346477545,1734993042142,-500.0,0.00013698,2]
[346477546,1734993042153,-3592.43080396,0.00013698,2]
[346477547,1734993042164,-2064.18919604,0.00013698,2]
[346477548,1734993042173,-3614.29,0.00013698,2]
[346477549,1734993042182,-476.192416,0.00013698,2]
[346477550,1734993042192,-500.0,0.00013698,2]
[346477551,1734993042201,-1728.37,0.00013698,2]
[346477552,1734993042210,-4253.29,0.00013698,2]
[346477553,1734993042220,-500.0,0.00013698,2]
[346477554,1734993042229,-1961.76,0.00013698,2]
[346477555,1734993042238,-1761.07,0.00013698,2]
[346477556,1734993042248,-476.192416,0.00013698,2]
[346477557,1734993042257,-905.09,0.00013698,2]
[346477558,1734993042267,-8813.22,0.00013698,2]
[346477559,1734993042276,-681.13,0.00013698,2]
[346477560,1734993042285,-584.21,0.00013698,2]
[346477561,1734993042295,-872.91,0.00013698,2]
[346477562,1734993042304,-500.0,0.00013698,2]
[346477563,1734993042314,-500.0,0.00013698,2]
[346477564,1734993042323,-752.74,0.00013698,2]
[346477565,1734993042332,-3276.22,0.00013698,2]
[346477566,1734993042341,-2161.92,0.00013698,2]
[346477567,1734993042351,-1486.63,0.00013698,2]
[346477568,1734993042361,-500.0,0.00013698,2]
[346477569,1734993042370,-500.0,0.00013698,2]
[346477570,1734993042379,-500.0,0.00013698,2]
[346477571,1734993042389,-500.0,0.00013698,2]
[346477572,1734993042399,-500.0,0.00013698,2]
[346477573,1734993042409,-500.0,0.00013698,2]
[346477574,1734993042418,-500.0,0.00013698,2]
[346477575,1734993042428,-500.0,0.00013698,2]
[346477576,1734993042437,-500.0,0.00013698,2]
[346477577,1734993042446,-500.0,0.00013698,2]
[346477578,1734993042455,-500.0,0.00013698,2]
[346477579,1734993042465,-630.63,0.00013698,2]
[346477580,1734993042474,-500.0,0.00013698,2]
[346477581,1734993042483,-500.0,0.00013698,2]
[346477582,1734993042494,-2186.27462766,0.00013698,2]
[346477584,1734993043195,-200.39537234,0.00013698,2]
[346477585,1734993043204,-209.49091222,0.00013698,2]
[346477586,1734993043216,-77.74500978,0.00013698,2]
[346477587,1734993043225,-470.54996612,0.00013698,2]
[346477602,1734993043335,-375.54973387,0.00013698,2]
[346477606,1734993043880,-3886.03030001,0.00013698,2]
[346477607,1734993043890,-785.900547,0.00013698,2]
[346477608,1734993043900,-500.0,0.00013698,2]
[346477609,1734993043909,-500.0,0.00013698,2]
[346477610,1734993043919,-1648.48,0.00013698,2]
[346477611,1734993043929,-2084.58915299,0.00013698,2]
[346477612,1734993043941,-161.13084701,0.00013698,2]
[346477613,1734993043950,-1080.03,0.00013698,2]
[346477614,1734993043959,-287.235922,0.00013698,2]
[346477615,1734993043969,-1241.03,0.00013698,2]
[346477616,1734993043979,-785.900547,0.00013698,2]
[346477617,1734993043991,-157.890767,0.00013698,2]
[346477618,1734993044000,-81.58890597,0.00013698,2]
[346477619,1734993044023,-1530.67109403,0.00013698,2]
[346477621,1734993044032,-516.59,0.00013698,2]
[346477622,1734993044042,-521.45842248,0.00013698,2]
[346477623,1734993044051,-860.05,0.00013698,2]
[346477624,1734993044061,-1414.69,0.00013698,2]
[346477625,1734993044071,-500.0,0.00013698,2]
[346477626,1734993044080,-947.42,0.00013698,2]
[346477627,1734993044091,-3161.33181163,0.00013698,2]
[346477641,1734993046253,-1749.62155536,0.00013698,2]
[346477642,1734993046283,-6803.37301841,0.00013698,2]
[346477643,1734993046332,-1529.8536146,0.00013698,2]
[346477644,1734993046342,-500.0,0.00013698,2]
[346477645,1734993046351,-500.0,0.00013698,2]
[346477646,1734993046361,-157.890767,0.00013698,2]
[346477647,1734993046370,-500.0,0.00013698,2]
[346477648,1734993046379,-3377.02,0.00013698,2]
[346477649,1734993046389,-2774.59,0.00013698,2]
[346477650,1734993046398,-1817.1,0.00013698,2]
[346477651,1734993046409,-151.0,0.00013698,2]
[346477652,1734993046419,-2175.99,0.00013698,2]
[346477653,1734993046428,-695.16933046,0.00013698,2]
[346477654,1734993046572,-1026.52066954,0.00013698,2]
[346477655,1734993046581,-500.0,0.00013698,2]
[346477656,1734993046591,-500.0,0.00013698,2]
[346477657,1734993046600,-500.0,0.00013698,2]
[346477658,1734993046610,-6014.52,0.00013698,2]
[346477659,1734993046620,-930.87748342,0.00013698,2]
[346477660,1734993046632,-329.97251658,0.00013698,2]
[346477661,1734993046641,-1630.63922793,0.00013698,2]
[346477666,1734993253804,3000.0,0.00026615,120]
[346477667,1734993286047,846.43,0.0001081,2]
[346477668,1734993444653,1086.69,0.00026615,120]
[346477669,1734993450612,166.86,0.00010115,2]
[346477670,1734993469477,1000.0,0.00026615,60]
[346477671,1734993531551,1000.0,0.00019,30]
[346477689,1734993845402,7931.77595816,0.00011695,2]
[346477690,1734993845424,10000.0,0.00011695,2]
[346477691,1734993845452,5968.22404184,0.00011695,2]
[346477692,1734993862792,167.43,0.00012054,2]
[346477693,1734993964788,250.0,0.00011695,2]
[346477694,1734993979333,499.52,0.00011695,2]
[346477697,1734994116226,335.15,0.00011685,2]
[346477698,1734994142528,1000.0,0.00011697,2]
[346477733,1734994232473,-234.68612663,0.00012388,2]
[346477734,1734994232483,-150.0,0.00012466,2]
[346477735,1734994232492,-379.40733436,0.00012475,2]
[346477736,1734994232503,-90.51266564,0.00012475,2]
[346477737,1734994232512,-469.92,0.00012478,2]
[346477738,1734994232521,-469.92,0.00012481,2]
[346477739,1734994232530,-469.92,0.00012484,2]
[346477740,1734994232539,-469.92,0.00012488,2]
[346477741,1734994232548,-469.92,0.00012491,2]
[346477742,1734994232558,-469.92,0.00012494,2]
[346477743,1734994232567,-469.92,0.00012498,2]
[346477744,1734994232576,-469.92,0.00012501,2]
[346477745,1734994232585,-469.92,0.00012504,2]
[346477746,1734994232594,-469.92,0.00012507,2]
[346477747,1734994232604,-469.92,0.00012511,2]
[346477748,1734994232613,-469.92,0.00012514,2]
[346477749,1734994232622,-469.92,0.00012517,2]
[346477750,1734994232631,-469.92,0.00012521,2]
[346477751,1734994232640,-469.92,0.00012524,2]
[346477752,1734994232649,-469.92,0.00012527,2]
[346477753,1734994232658,-469.92,0.00012531,2]
[346477754,1734994232667,-469.92,0.00012534,2]
[346477755,1734994232676,-469.92,0.00012537,2]
[346477756,1734994232685,-163.12,0.00012716,2]
[346477757,1734994232694,-300.0,0.00012783,2]
[346477758,1734994232703,-250.0,0.00012784,2]
[346477759,1734994232712,-471.88733436,0.00012801,2]
[346477760,1734994232743,-333.47266564,0.00012801,2]
[346477761,1734994232752,-150.99,0.00012893,2]
[346477762,1734994232762,-540.83,0.00012893,2]
[346477763,1734994232771,-9999.99,0.00012893,2]
[346477764,1734994232780,-1125.41,0.00012893,2]
[346477765,1734994232789,-29999.99,0.00012893,2]
[346477766,1734994232798,-29999.99,0.00012893,2]
[346477767,1734994232807,-2072.4856,0.000129,2]
[346477768,1734994232815,-3860.4543,0.000129,2]
[346477769,1734994232824,-5000.0,0.000129,2]
[346477770,1734994232833,-1000.0,0.000129,2]
[346477771,1734994232842,-167.9640946,0.000129,2]
[346477772,1734994232851,-14024.44998655,0.000129,2]
[346477773,1734994232860,-3426.0,0.00012968,2]
[346477774,1734994232869,-8286.93957365,0.00012974,2]
[346477775,1734994232879,-1000.0,0.00012999,2]
[346477776,1734994232888,-1511.03391142,0.00013,2]
[346477777,1734994232901,-63962.6975533,0.00013,2]
[346477778,1734994232912,-1264.71670167,0.00013,2]
[346477779,1734994232923,-509.22801043,0.00013,2]
[346477780,1734994232955,-2476.49620176,0.00013,2]
[346477781,1734994233009,-1276.63304039,0.00013,2]
[346477783,1734994233021,-468.43921911,0.00013,2]
[346477784,1734994233036,-933.16553309,0.00013,2]
[346477787,1734994233048,-6775.97866015,0.00013,2]
[346477789,1734994233059,-6276.31387948,0.00013,2]
[346477791,1734994233070,-380099.57315274,0.00013,2]
[346477793,1734994233080,-365.07,0.00013,2]
[346477795,1734994233089,-150.0,0.00013,2]
[346477796,1734994233099,-14024.44998649,0.00013038,2]
[346477797,1734994233108,-846.43,0.00013074,2]
[346477798,1734994233118,-732.035,0.0001308,2]
[346477799,1734994233128,-8286.93957363,0.00013104,2]
[346477800,1734994233137,-335.15,0.00013146,2]
[346477801,1734994233146,-1000.0,0.00013159,2]
[346477802,1734994233156,-8286.93957363,0.00013234,2]
[346477803,1734994233165,-500.0,0.00013299,2]
[346477804,1734994233174,-500.0,0.00013299,2]
[346477805,1734994233183,-500.0,0.00013299,2]
[346477806,1734994233192,-500.0,0.00013299,2]
[346477807,1734994233201,-500.0,0.00013299,2]
[346477808,1734994233211,-161.3091848,0.00013299,2]
[346477809,1734994233419,-490.27107054,0.00013299,2]
[346477810,1734994233485,-500.0,0.00013299,2]
[346477811,1734994233495,-300.0,0.00013299,2]
[346477812,1734994233504,-770.54,0.000133,2]
[346477813,1734994233513,-8286.93957363,0.00013365,2]
[346477814,1734994233523,-189.53439018,0.00013485,2]
[346477815,1734994233532,-8286.93957363,0.00013495,2]
[346477816,1734994233541,-428.97090145,0.00013528,2]
[346477817,1734994233551,-3000.0,0.0001356,2]
[346477818,1734994233561,-1000.0,0.00013597,2]
[346477819,1734994233570,-5824.6604,0.00013597,2]
[346477820,1734994233580,-153.60707537,0.00013598,2]
[346477821,1734994233589,-763.28398254,0.00013598,2]
[346477822,1734994233598,-348.22354477,0.00013598,2]
[346477823,1734994233608,-293.8543,0.00013598,2]
[346477824,1734994233617,-1167.7858,0.00013598,2]
[346477825,1734994233626,-4990.4842,0.00013598,2]
[346477826,1734994233636,-8286.93957363,0.00013625,2]
[346477827,1734994233645,-500.0,0.00013698,2]
[346477828,1734994233655,-500.0,0.00013698,2]
[346477829,1734994233664,-150.654173,0.00013698,2]
[346477830,1734994233674,-500.0,0.00013698,2]
[346477831,1734994233683,-156.990062,0.00013698,2]
[346477832,1734994233693,-206.56518814,0.00013698,2]
[346477833,1734994233702,-601.33424263,0.00013698,2]
[346477834,1734994233711,-500.0,0.00013698,2]
[346477835,1734994233720,-500.0,0.00013698,2]
[346477836,1734994233729,-500.0,0.00013698,2]
[346477837,1734994233739,-340.92660774,0.00013698,2]
[346477838,1734994233748,-500.0,0.00013698,2]
[346477839,1734994233757,-500.0,0.00013698,2]
[346477840,1734994233767,-500.0,0.00013698,2]
[346477841,1734994233776,-500.4225745,0.00013698,2]
[346477842,1734994233786,-558.60604493,0.00013698,2]
[346477843,1734994233796,-260.80641004,0.00013698,2]
[346477844,1734994233805,-500.0,0.00013698,2]
[346477845,1734994233814,-500.0,0.00013698,2]
[346477846,1734994233823,-500.0,0.00013698,2]
[346477847,1734994233832,-500.0,0.00013698,2]
[346477848,1734994233841,-500.0,0.00013698,2]
[346477849,1734994233850,-500.0,0.00013698,2]
[346477850,1734994233860,-500.0,0.00013698,2]
[346477851,1734994233870,-500.0,0.00013698,2]
[346477852,1734994233880,-500.0,0.00013698,2]
[346477853,1734994233890,-501.38548435,0.00013698,2]
[346477854,1734994233900,-500.0,0.00013698,2]
[346477855,1734994233909,-500.0,0.00013698,2]
[346477856,1734994233919,-500.0,0.00013698,2]
[346477857,1734994233928,-300.0,0.00013698,2]
[346477858,1734994233937,-500.0,0.00013698,2]
[346477859,1734994233946,-500.0,0.00013698,2]
[346477860,1734994233956,-500.0,0.00013698,2]
[346477861,1734994233965,-500.0,0.00013698,2]
[346477862,1734994233974,-500.0,0.00013698,2]
[346477863,1734994233984,-500.0,0.00013698,2]
[346477864,1734994233994,-519.91123628,0.00013698,2]
[346477865,1734994234003,-502.83992619,0.00013698,2]
[346477866,1734994234012,-151.0,0.00013698,2]
[346477867,1734994234021,-151.0,0.00013698,2]
[346477868,1734994234031,-500.0,0.00013698,2]
[346477869,1734994234040,-500.0,0.00013698,2]
[346477870,1734994234049,-500.0,0.00013698,2]
[346477871,1734994234059,-500.0,0.00013698,2]
[346477872,1734994234068,-500.72493896,0.00013698,2]
[346477873,1734994234077,-500.0,0.00013698,2]
[346477874,1734994234087,-500.0,0.00013698,2]
[346477875,1734994234096,-500.0,0.00013698,2]
[346477876,1734994234105,-581.06,0.00013698,2]
[346477877,1734994234115,-500.0,0.00013698,2]
[346477878,1734994234124,-500.0,0.00013698,2]
[346477879,1734994234135,-500.0,0.00013698,2]
[346477880,1734994234144,-500.0,0.00013698,2]
[346477881,1734994234154,-501.10341853,0.00013698,2]
[346477882,1734994234164,-500.0,0.00013698,2]
[346477883,1734994234173,-501.81098224,0.00013698,2]
[346477884,1734994234183,-557.82,0.00013698,2]
[346477885,1734994234193,-500.0,0.00013698,2]
[346477886,1734994234202,-875.72,0.00013698,2]
[346477887,1734994234212,-500.0,0.00013698,2]
[346477888,1734994234222,-500.0,0.00013698,2]
[346477889,1734994234233,-500.0,0.00013698,2]
[346477890,1734994234243,-500.0,0.00013698,2]
[346477891,1734994234252,-1002.23,0.00013698,2]
[346477892,1734994234263,-500.0,0.00013698,2]
[346477893,1734994234272,-500.0,0.00013698,2]
[346477894,1734994234282,-151.0,0.00013698,2]
[346477895,1734994234292,-151.0,0.00013698,2]
[346477896,1734994234302,-684.23,0.00013698,2]
[346477897,1734994234311,-500.0,0.00013698,2]
[346477898,1734994234321,-500.0,0.00013698,2]
[346477899,1734994234330,-500.0,0.00013698,2]
[346477900,1734994234339,-500.0,0.00013698,2]
[346477901,1734994234349,-690.21,0.00013698,2]
[346477902,1734994234359,-500.0,0.00013698,2]
[346477903,1734994234372,-500.0,0.00013698,2]
[346477904,1734994234383,-500.0,0.00013698,2]
[346477905,1734994234393,-500.0,0.00013698,2]
[346477906,1734994234402,-558.1,0.00013698,2]
[346477907,1734994234413,-500.0,0.00013698,2]
[346477908,1734994234422,-500.0,0.00013698,2]
[346477909,1734994234432,-592.75,0.00013698,2]
[346477910,1734994234442,-500.0,0.00013698,2]
[346477911,1734994234452,-500.0,0.00013698,2]
[346477912,1734994234461,-500.0,0.00013698,2]
[346477913,1734994234470,-500.0,0.00013698,2]
[346477914,1734994234480,-1034.55,0.00013698,2]
[346477915,1734994234489,-590.94,0.00013698,2]
[346477916,1734994234498,-500.0,0.00013698,2]
[346477917,1734994234508,-500.0,0.00013698,2]
[346477918,1734994234517,-828.18,0.00013698,2]
[346477919,1734994234526,-500.0,0.00013698,2]
[346477920,1734994234538,-500.0,0.00013698,2]
[346477921,1734994234547,-629.62,0.00013698,2]
[346477922,1734994234556,-649.04,0.00013698,2]
[346477923,1734994234565,-500.0,0.00013698,2]